fUST/lending_fUST_20250729
["ID","MTS","AMOUNT","RATE_DAILY","PERIOD"]
[375723571,1753723849716,-500.0,0.00019973,2]
[375723573,1753723849725,-500.0,0.00019973,2]
[375723575,1753723849734,-500.0,0.00019973,2]
[375723577,1753723849744,-160.0,0.00019981,2]
[375723579,1753723849753,-460.0,0.0002,2]
[375723581,1753723849762,-460.0,0.0002,2]
[375723583,1753723849772,-193.25864933,0.0002,2]
[375723585,1753723849782,-460.0,0.0002,2]
[375723587,1753723849791,-460.0,0.0002,2]
[375723589,1753723849800,-460.0,0.0002,2]
[375723591,1753723849809,-460.0,0.0002,2]
[375723593,1753723849818,-460.0,0.0002,2]
[375723595,1753723849827,-460.0,0.0002,2]
[375723597,1753723849837,-460.0,0.0002,2]
[375723599,1753723849846,-460.0,0.0002,2]
[375723601,1753723849855,-460.0,0.0002,2]
[375723603,1753723849863,-240.0,0.0002,2]
[375723605,1753723849874,-460.0,0.0002,2]
[375723607,1753723849884,-460.0,0.0002,2]
[375723609,1753723849893,-251.1640172,0.0002,2]
[375723611,1753723849902,-460.0,0.0002,2]
[375723613,1753723849911,-460.0,0.0002,2]
[375723615,1753723849920,-460.0,0.0002,2]
[375723617,1753723849930,-460.0,0.0002,2]
[375723619,1753723849939,-460.0,0.0002,2]
[375723621,1753723849949,-628.0,0.0002,2]
[375723623,1753723849958,-460.0,0.0002,2]
[375723625,1753723849975,-923.47,0.0002,2]
[375723627,1753723849984,-460.0,0.0002,2]
[375723629,1753723849994,-460.0,0.0002,2]
[375723631,1753723850003,-460.0,0.0002,2]
[375723633,1753723850013,-460.0,0.0002,2]
[375723635,1753723850022,-984.91,0.0002,2]
[375723637,1753723850030,-858.0,0.0002,2]
[375723639,1753723850040,-460.0,0.0002,2]
[375723641,1753723850050,-460.0,0.0002,2]
[375723643,1753723850059,-460.0,0.0002,2]
[375723645,1753723850069,-460.0,0.0002,2]
[375723647,1753723850078,-13800.58259017,0.0002,2]
[375723648,1753723850087,-460.0,0.0002,2]
[375723650,1753723850097,-460.0,0.0002,2]
[375723652,1753723850106,-460.0,0.0002,2]
[375723654,1753723850115,-460.0,0.0002,2]
[375723656,1753723850127,-525.00679819,0.0002,2]
[375723658,1753723850136,-443.30143165,0.0002,2]
[375723660,1753723850145,-460.0,0.0002,2]
[375723662,1753723850155,-460.0,0.0002,2]
[375723664,1753723850165,-460.0,0.0002,2]
[375723666,1753723850174,-460.0,0.0002,2]
[375723668,1753723850183,-460.0,0.0002,2]
[375723670,1753723850193,-460.0,0.0002,2]
[375723672,1753723850202,-460.0,0.0002,2]
[375723674,1753723850211,-460.0,0.0002,2]
[375723676,1753723850220,-460.0,0.0002,2]
[375723678,1753723850229,-460.0,0.0002,2]
[375723680,1753723850239,-460.0,0.0002,2]
[375723682,1753723850248,-364.81999999,0.0002,2]
[375723684,1753723850257,-965.77,0.0002,2]
[375723685,1753723850267,-460.0,0.0002,2]
[375723687,1753723850277,-667.09,0.0002,2]
[375723689,1753723850286,-460.0,0.0002,2]
[375723691,1753723850296,-460.0,0.0002,2]
[375723693,1753723850312,-460.0,0.0002,2]
[375723695,1753723850321,-460.0,0.0002,2]
[375723697,1753723850331,-460.0,0.0002,2]
[375723698,1753723850341,-606.90097164,0.0002,2]
[375723699,1753723850350,-460.0,0.0002,2]
[375723700,1753723850359,-460.0,0.0002,2]
[375723701,1753723850369,-460.0,0.0002,2]
[375723702,1753723850379,-460.0,0.0002,2]
[375723703,1753723850388,-460.0,0.0002,2]
[375723704,1753723850397,-1902.34,0.0002,2]
[375723705,1753723850406,-460.0,0.0002,2]
[375723706,1753723850417,-460.0,0.0002,2]
[375723707,1753723850427,-460.0,0.0002,2]
[375723708,1753723850436,-2739.1,0.0002,2]
[375723709,1753723850445,-460.0,0.0002,2]
[375723710,1753723850455,-753.97,0.0002,2]
[375723711,1753723850464,-460.0,0.0002,2]
[375723712,1753723850474,-460.0,0.0002,2]
[375723713,1753723850483,-788.49,0.0002,2]
[375723714,1753723850492,-460.0,0.0002,2]
[375723715,1753723850501,-460.0,0.0002,2]
[375723716,1753723850510,-460.0,0.0002,2]
[375723717,1753723850520,-460.0,0.0002,2]
[375723718,1753723850529,-1015.33,0.0002,2]
[375723719,1753723850538,-460.0,0.0002,2]
[375723720,1753723850550,-836.54,0.0002,2]
[375723721,1753723850560,-460.0,0.0002,2]
[375723722,1753723850570,-1096.29,0.0002,2]
[375723723,1753723850579,-610.17,0.0002,2]
[375723724,1753723850589,-460.0,0.0002,2]
[375723725,1753723850599,-460.0,0.0002,2]
[375723726,1753723850608,-460.0,0.0002,2]
[375723727,1753723850617,-460.0,0.0002,2]
[375723728,1753723850630,-460.0,0.0002,2]
[375723729,1753723850639,-4427.46,0.0002,2]
[375723730,1753723850649,-460.0,0.0002,2]
[375723731,1753723850659,-858.49,0.0002,2]
[375723732,1753723850669,-460.0,0.0002,2]
[375723733,1753723850679,-460.0,0.0002,2]
[375723734,1753723850689,-546.53,0.0002,2]
[375723735,1753723850698,-460.0,0.0002,2]
[375723736,1753723850708,-460.0,0.0002,2]
[375723737,1753723850718,-460.0,0.0002,2]
[375723738,1753723850728,-460.0,0.0002,2]
[375723739,1753723850737,-460.0,0.0002,2]
[375723740,1753723850746,-677.12,0.0002,2]
[375723741,1753723850755,-460.0,0.0002,2]
[375723742,1753723850765,-3937.57,0.0002,2]
[375723743,1753723850774,-460.0,0.0002,2]
[375723744,1753723850784,-460.0,0.0002,2]
[375723745,1753723850793,-460.0,0.0002,2]
[375723746,1753723850802,-565.78,0.0002,2]
[375723747,1753723850811,-460.0,0.0002,2]
[375723748,1753723850820,-460.0,0.0002,2]
[375723749,1753723850830,-460.0,0.0002,2]
[375723750,1753723850839,-460.0,0.0002,2]
[375723751,1753723850848,-460.0,0.0002,2]
[375723752,1753723850857,-460.0,0.0002,2]
[375723753,1753723850866,-460.0,0.0002,2]
[375723754,1753723850876,-460.0,0.0002,2]
[375723755,1753723850885,-460.0,0.0002,2]
[375723756,1753723850894,-1054.55,0.0002,2]
[375723757,1753723850903,-7000.0,0.0002,2]
[375723758,1753723850912,-9775.0909172,0.0002,2]
[375723759,1753723850922,-460.0,0.0002,2]
[375723760,1753723850931,-16022.07015105,0.0002,2]
[375723761,1753723850940,-460.0,0.0002,2]
[375723762,1753723850949,-460.0,0.0002,2]
[375723763,1753723850958,-460.0,0.0002,2]
[375723764,1753723850967,-847.96,0.0002,2]
[375723765,1753723850976,-644.34,0.0002,2]
[375723766,1753723850985,-460.0,0.0002,2]
[375723767,1753723850994,-460.0,0.0002,2]
[375723768,1753723851004,-618.62,0.0002,2]
[375723769,1753723851013,-460.0,0.0002,2]
[375723770,1753723851022,-653.34,0.0002,2]
[375723771,1753723851031,-776.44,0.0002,2]
[375723772,1753723851040,-460.0,0.0002,2]
[375723773,1753723851050,-460.0,0.0002,2]
[375723774,1753723851059,-460.0,0.0002,2]
[375723775,1753723851068,-460.0,0.0002,2]
[375723776,1753723851078,-460.0,0.0002,2]
[375723777,1753723851087,-460.0,0.0002,2]
[375723778,1753723851096,-742.6,0.0002,2]
[375723779,1753723851106,-1430.15,0.0002,2]
[375723780,1753723851115,-488.58,0.0002,2]
[375723781,1753723851125,-2338.21,0.0002,2]
[375723782,1753723851134,-693.43,0.0002,2]
[375723783,1753723851144,-1043.6,0.0002,2]
[375723784,1753723851153,-460.0,0.0002,2]
[375723785,1753723851162,-466.67,0.0002,2]
[375723786,1753723851172,-3220.78,0.0002,2]
[375723787,1753723851182,-460.0,0.0002,2]
[375723788,1753723851191,-6863.05,0.0002,2]
[375723789,1753723851201,-460.0,0.0002,2]
[375723790,1753723851211,-460.0,0.0002,2]
[375723791,1753723851220,-567.93,0.0002,2]
[375723792,1753723851230,-476.33440275,0.0002,2]
[375723793,1753723851239,-460.0,0.0002,2]
[375723794,1753723851249,-460.0,0.0002,2]
[375723795,1753723851259,-460.0,0.0002,2]
[375723796,1753723851268,-460.0,0.0002,2]
[375723797,1753723851277,-755.71,0.0002,2]
[375723798,1753723851286,-1308.97,0.0002,2]
[375723799,1753723851296,-460.0,0.0002,2]
[375723800,1753723851305,-460.0,0.0002,2]
[375723801,1753723851314,-460.0,0.0002,2]
[375723802,1753723851324,-460.0,0.0002,2]
[375723803,1753723851333,-460.0,0.0002,2]
[375723804,1753723851343,-843.74,0.0002,2]
[375723805,1753723851352,-460.0,0.0002,2]
[375723806,1753723851361,-460.0,0.0002,2]
[375723807,1753723851370,-2994.97,0.0002,2]
[375723808,1753723851382,-460.0,0.0002,2]
[375723809,1753723851391,-460.0,0.0002,2]
[375723810,1753723851401,-460.0,0.0002,2]
[375723811,1753723851411,-460.0,0.0002,2]
[375723812,1753723851421,-460.0,0.0002,2]
[375723813,1753723851430,-1266.96,0.0002,2]
[375723814,1753723851567,-1000.0,0.00020021,2]
[375723815,1753723851577,-1000.0,0.00020021,2]
[375723816,1753723851587,-1000.0,0.00020021,2]
[375723817,1753723851597,-652.77755015,0.00020021,2]
[375723818,1753723851607,-1001.88421175,0.00020021,2]
[375723819,1753723851616,-500.0,0.00020021,2]
[375723820,1753723851629,-1000.0,0.00020021,2]
[375723821,1753723851638,-1000.0,0.00020021,2]
[375723822,1753723851647,-1000.0,0.00020021,2]
[375723823,1753723851656,-1000.0,0.00020021,2]
[375723824,1753723851666,-1000.0,0.00020021,2]
[375723825,1753723851676,-500.0,0.00020021,2]
[375723826,1753723851686,-1000.0,0.00020021,2]
[375723827,1753723851695,-1000.0,0.00020021,2]
[375723828,1753723851705,-289.67277964,0.00020021,2]
[375723829,1753723851715,-160.0,0.00020022,2]
[375723830,1753723851725,-160.0,0.00020022,2]
[375723831,1753723851734,-840.90880427,0.00020022,2]
[375723832,1753723851743,-214.87999826,0.00020022,2]
[375723833,1753723851753,-454.6043428,0.00020022,2]
[375723834,1753723851762,-312.16666667,0.00020022,2]
[375723835,1753723851771,-12634.73134317,0.00020022,2]
[375723836,1753723851781,-160.0,0.00020022,2]
[375723837,1753723851790,-526.58819812,0.00020022,2]
[375723838,1753723851800,-216.06083566,0.00020022,2]
[375723839,1753723851810,-160.0,0.00020022,2]
[375723840,1753723851819,-231.34820253,0.00020022,2]
[375723841,1753723851829,-160.0,0.00020022,2]
[375723842,1753723851839,-160.0,0.00020064,2]
[375723843,1753723851848,-160.0,0.00020064,2]
[375723844,1753723851858,-1500.0,0.00020268,2]
[375723845,1753723851868,-151.978491,0.00020273,2]
[375723846,1753723851879,-460.0,0.00020273,2]
[375723847,1753723851889,-460.0,0.00020273,2]
[375723848,1753723851900,-460.0,0.00020273,2]
[375723849,1753723851910,-438.63551512,0.00020273,2]
[375723850,1753723851920,-460.0,0.00020273,2]
[375723851,1753723851930,-460.0,0.00020273,2]
[375723852,1753723851940,-460.0,0.00020273,2]
[375723853,1753723851949,-460.0,0.00020273,2]
[375723854,1753723851959,-460.0,0.00020273,2]
[375723855,1753723851969,-460.0,0.00020273,2]
[375723856,1753723851978,-460.0,0.00020273,2]
[375723857,1753723851987,-460.0,0.00020273,2]
[375723858,1753723851996,-460.0,0.00020273,2]
[375723859,1753723852006,-460.0,0.00020273,2]
[375723860,1753723852016,-458.23035218,0.00020273,2]
[375723861,1753723852025,-460.0,0.00020273,2]
[375723862,1753723852035,-560.67393125,0.00020273,2]
[375723863,1753723852044,-460.0,0.00020273,2]
[375723864,1753723852054,-628.0,0.00020273,2]
[375723865,1753723852063,-460.0,0.00020273,2]
[375723866,1753723852072,-923.47,0.00020273,2]
[375723867,1753723852082,-460.0,0.00020273,2]
[375723868,1753723852091,-460.0,0.00020273,2]
[375723869,1753723852101,-329.75051199,0.00020273,2]
[375723870,1753723852111,-460.0,0.00020273,2]
[375723871,1753723852121,-984.91,0.00020273,2]
[375723872,1753723852131,-858.0,0.00020273,2]
[375723873,1753723852141,-460.0,0.00020273,2]
[375723874,1753723852150,-460.0,0.00020273,2]
[375723875,1753723852159,-460.0,0.00020273,2]
[375723876,1753723852169,-460.0,0.00020273,2]
[375723877,1753723852179,-460.0,0.00020273,2]
[375723878,1753723852187,-460.0,0.00020273,2]
[375723879,1753723852197,-460.0,0.00020273,2]
[375723880,1753723852206,-151.0,0.00020273,2]
[375723881,1753723852215,-151.0,0.00020273,2]
[375723882,1753723852224,-151.0,0.00020273,2]
[375723883,1753723852234,-460.0,0.00020273,2]
[375723884,1753723852244,-460.0,0.00020273,2]
[375723885,1753723852253,-460.0,0.00020273,2]
[375723886,1753723852263,-151.0,0.00020273,2]
[375723887,1753723852272,-460.0,0.00020273,2]
[375723888,1753723852282,-460.0,0.00020273,2]
[375723889,1753723852291,-460.0,0.00020273,2]
[375723890,1753723852300,-460.0,0.00020273,2]
[375723891,1753723852310,-460.0,0.00020273,2]
[375723892,1753723852319,-460.0,0.00020273,2]
[375723893,1753723852328,-965.77,0.00020273,2]
[375723894,1753723852338,-151.0,0.00020273,2]
[375723895,1753723852347,-151.0,0.00020273,2]
[375723896,1753723852356,-460.0,0.00020273,2]
[375723897,1753723852366,-667.09,0.00020273,2]
[375723898,1753723852377,-460.0,0.00020273,2]
[375723899,1753723852387,-151.0,0.00020273,2]
[375723900,1753723852396,-460.0,0.00020273,2]
[375723901,1753723852406,-460.0,0.00020273,2]
[375723902,1753723852416,-460.0,0.00020273,2]
[375723903,1753723852425,-460.0,0.00020273,2]
[375723904,1753723852435,-591.48669691,0.00020273,2]
[375723905,1753723852444,-460.0,0.00020273,2]
[375723906,1753723852454,-460.0,0.00020273,2]
[375723907,1753723852463,-460.0,0.00020273,2]
[375723908,1753723852472,-460.0,0.00020273,2]
[375723909,1753723852481,-1902.34,0.00020273,2]
[375723910,1753723852491,-460.0,0.00020273,2]
[375723911,1753723852500,-460.0,0.00020273,2]
[375723912,1753723852509,-2739.1,0.00020273,2]
[375723913,1753723852519,-460.0,0.00020273,2]
[375723914,1753723852527,-753.97,0.00020273,2]
[375723915,1753723852537,-460.0,0.00020273,2]
[375723916,1753723852546,-460.0,0.00020273,2]
[375723917,1753723852559,-788.49,0.00020273,2]
[375723918,1753723852568,-460.0,0.00020273,2]
[375723919,1753723852577,-460.0,0.00020273,2]
[375723920,1753723852587,-1015.33,0.00020273,2]
[375723921,1753723852597,-460.0,0.00020273,2]
[375723922,1753723852607,-836.54,0.00020273,2]
[375723923,1753723852616,-151.0,0.00020273,2]
[375723924,1753723852627,-460.0,0.00020273,2]
[375723925,1753723852638,-1096.29,0.00020273,2]
[375723926,1753723852647,-151.0,0.00020273,2]
[375723927,1753723852656,-610.17,0.00020273,2]
[375723928,1753723852666,-460.0,0.00020273,2]
[375723929,1753723852675,-460.0,0.00020273,2]
[375723930,1753723852684,-460.0,0.00020273,2]
[375723931,1753723852694,-151.0,0.00020273,2]
[375723932,1753723852704,-460.0,0.00020273,2]
[375723933,1753723852714,-460.0,0.00020273,2]
[375723934,1753723852723,-4427.46,0.00020273,2]
[375723935,1753723852732,-460.0,0.00020273,2]
[375723936,1753723852741,-858.49,0.00020273,2]
[375723937,1753723852750,-460.0,0.00020273,2]
[375723938,1753723852760,-460.0,0.00020273,2]
[375723939,1753723852770,-546.53,0.00020273,2]
[375723940,1753723852779,-460.0,0.00020273,2]
[375723941,1753723852789,-460.0,0.00020273,2]
[375723942,1753723852798,-460.0,0.00020273,2]
[375723943,1753723852807,-677.12,0.00020273,2]
[375723944,1753723852816,-151.0,0.00020273,2]
[375723945,1753723852825,-460.0,0.00020273,2]
[375723946,1753723852835,-3937.57,0.00020273,2]
[375723947,1753723852845,-460.0,0.00020273,2]
[375723948,1753723852855,-460.0,0.00020273,2]
[375723949,1753723852864,-460.0,0.00020273,2]
[375723950,1753723852873,-565.78,0.00020273,2]
[375723951,1753723852883,-460.0,0.00020273,2]
[375723952,1753723852893,-460.0,0.00020273,2]
[375723953,1753723852902,-460.0,0.00020273,2]
[375723954,1753723852912,-460.0,0.00020273,2]
[375723955,1753723852921,-460.0,0.00020273,2]
[375723956,1753723852931,-460.0,0.00020273,2]
[375723957,1753723852940,-460.0,0.00020273,2]
[375723958,1753723852950,-460.0,0.00020273,2]
[375723959,1753723852959,-460.0,0.00020273,2]
[375723960,1753723852968,-366.716529,0.00020273,2]
[375723961,1753723852977,-1054.55,0.00020273,2]
[375723962,1753723852987,-366.716529,0.00020273,2]
[375723963,1753723852996,-460.0,0.00020273,2]
[375723964,1753723853005,-460.0,0.00020273,2]
[375723965,1753723853014,-460.0,0.00020273,2]
[375723966,1753723853023,-847.96,0.00020273,2]
[375723967,1753723853032,-644.34,0.00020273,2]
[375723968,1753723853042,-460.0,0.00020273,2]
[375723969,1753723853051,-618.62,0.00020273,2]
[375723970,1753723853061,-460.0,0.00020273,2]
[375723971,1753723853070,-653.34,0.00020273,2]
[375723972,1753723853079,-460.0,0.00020273,2]
[375723973,1753723853089,-460.0,0.00020273,2]
[375723974,1753723853098,-776.44,0.00020273,2]
[375723975,1753723853107,-463.13467232,0.00020273,2]
[375723976,1753723853116,-460.0,0.00020273,2]
[375723977,1753723853126,-460.0,0.00020273,2]
[375723978,1753723853135,-460.0,0.00020273,2]
[375723979,1753723853145,-742.6,0.00020273,2]
[375723980,1753723853154,-488.58,0.00020273,2]
[375723981,1753723853164,-2338.21,0.00020273,2]
[375723982,1753723853173,-1430.15,0.00020273,2]
[375723983,1753723853182,-693.43,0.00020273,2]
[375723984,1753723853192,-1043.6,0.00020273,2]
[375723985,1753723853201,-460.0,0.00020273,2]
[375723986,1753723853210,-466.67,0.00020273,2]
[375723987,1753723853219,-3220.78,0.00020273,2]
[375723988,1753723853228,-460.0,0.00020273,2]
[375723989,1753723853238,-6863.05,0.00020273,2]
[375723990,1753723853247,-332.40568495,0.00020273,2]
[375723991,1753723853256,-460.0,0.00020273,2]
[375723992,1753723853266,-567.93,0.00020273,2]
[375723993,1753723853275,-460.0,0.00020273,2]
[375723994,1753723853284,-460.0,0.00020273,2]
[375723995,1753723853293,-151.0,0.00020273,2]
[375723996,1753723853302,-460.0,0.00020273,2]
[375723997,1753723853311,-460.0,0.00020273,2]
[375723998,1753723853320,-755.71,0.00020273,2]
[375723999,1753723853329,-1308.97,0.00020273,2]
[375724000,1753723853338,-460.0,0.00020273,2]
[375724001,1753723853347,-151.0,0.00020273,2]
[375724002,1753723853358,-460.0,0.00020273,2]
[375724003,1753723853368,-460.0,0.00020273,2]
[375724004,1753723853378,-460.0,0.00020273,2]
[375724005,1753723853388,-460.0,0.00020273,2]
[375724006,1753723853397,-843.74,0.00020273,2]
[375724007,1753723853406,-460.0,0.00020273,2]
[375724008,1753723853415,-460.0,0.00020273,2]
[375724009,1753723853425,-2994.97,0.00020273,2]
[375724010,1753723853434,-460.0,0.00020273,2]
[375724011,1753723853444,-460.0,0.00020273,2]
[375724012,1753723853453,-460.0,0.00020273,2]
[375724013,1753723853462,-460.0,0.00020273,2]
[375724014,1753723853472,-460.0,0.00020273,2]
[375724015,1753723853481,-1266.96,0.00020273,2]
[375724016,1753723853490,-151.0,0.000203,4]
[375724017,1753723853499,-9285.46151547,0.00020376,2]
[375724018,1753723853508,-417.03,0.00020405,2]
[375724019,1753723853517,-172.293118,0.00020447,2]
[375724020,1753723853527,-151.0,0.000205,3]
[375724021,1753723853536,-1000.0,0.00020521,2]
[375724022,1753723853546,-1000.0,0.00020521,2]
[375724023,1753723853558,-1000.0,0.00020521,2]
[375724024,1753723853567,-502.39595311,0.00020521,2]
[375724025,1753723853576,-718.33169195,0.00020521,2]
[375724026,1753723853586,-1000.0,0.00020521,2]
[375724027,1753723853596,-1000.0,0.00020521,2]
[375724028,1753723853606,-1000.0,0.00020521,2]
[375724029,1753723853615,-263.02104221,0.00020521,2]
[375724030,1753723853632,-500.0,0.00020521,2]
[375724031,1753723853641,-500.0,0.00020521,2]
[375724032,1753723853650,-1000.0,0.00020521,2]
[375724033,1753723853660,-502.01193188,0.00020521,2]
[375724034,1753723853670,-1000.0,0.00020521,2]
[375724035,1753723853680,-1000.0,0.00020521,2]
[375724036,1753723853690,-1000.0,0.00020521,2]
[375724037,1753723853700,-1000.0,0.00020521,2]
[375724038,1753723853710,-1000.0,0.00020521,2]
[375724039,1753723853719,-500.0,0.00020521,2]
[375724040,1753723853729,-25000.0,0.00020535,2]
[375724041,1753723853739,-24322.12931247,0.00020535,2]
[375724042,1753723853748,-151.0,0.00020535,2]
[375724043,1753723853758,-691.50085884,0.00020535,2]
[375724044,1753723853767,-151.0,0.00020535,2]
[375724045,1753723853775,-151.0,0.00020535,2]
[375724046,1753723853784,-151.0,0.00020535,2]
[375724047,1753723853792,-151.0,0.00020535,2]
[375724048,1753723853801,-151.0,0.00020535,2]
[375724049,1753723853811,-151.0,0.00020535,2]
[375724050,1753723853820,-151.0,0.00020535,2]
[375724051,1753723853829,-151.0,0.00020535,2]
[375724052,1753723853838,-151.0,0.00020535,2]
[375724053,1753723853847,-151.0,0.00020535,2]
[375724054,1753723853857,-151.0,0.00020535,2]
[375724055,1753723853866,-151.0,0.00020535,2]
[375724056,1753723853877,-151.0,0.00020535,2]
[375724057,1753723853886,-151.0,0.00020535,2]
[375724058,1753723853895,-151.0,0.00020535,2]
[375724059,1753723853905,-151.0,0.00020535,2]
[375724060,1753723853951,-151.0,0.00020535,2]
[375724061,1753723853960,-151.0,0.00020535,2]
[375724062,1753723853969,-151.0,0.00020535,2]
[375724063,1753723853978,-151.0,0.00020535,2]
[375724064,1753723853987,-460.0,0.00020547,2]
[375724065,1753723853996,-460.0,0.00020547,2]
[375724066,1753723854005,-460.0,0.00020547,2]
[375724067,1753723854014,-460.0,0.00020547,2]
[375724068,1753723854023,-460.0,0.00020547,2]
[375724069,1753723854032,-460.0,0.00020547,2]
[375724070,1753723854040,-460.0,0.00020547,2]
[375724071,1753723854049,-460.0,0.00020547,2]
[375724072,1753723854059,-460.0,0.00020547,2]
[375724073,1753723854068,-460.0,0.00020547,2]
[375724074,1753723854077,-460.0,0.00020547,2]
[375724075,1753723854086,-460.0,0.00020547,2]
[375724076,1753723854095,-460.0,0.00020547,2]
[375724077,1753723854105,-460.0,0.00020547,2]
[375724078,1753723854114,-151.0,0.00020547,2]
[375724079,1753723854124,-460.0,0.00020547,2]
[375724080,1753723854133,-628.0,0.00020547,2]
[375724081,1753723854142,-460.0,0.00020547,2]
[375724082,1753723854151,-923.47,0.00020547,2]
[375724083,1753723854160,-460.0,0.00020547,2]
[375724084,1753723854169,-460.0,0.00020547,2]
[375724085,1753723854179,-460.0,0.00020547,2]
[375724086,1753723854395,-984.91,0.00020547,2]
[375724087,1753723854404,-151.0,0.00020547,2]
[375724088,1753723854414,-858.0,0.00020547,2]
[375724089,1753723854423,-460.0,0.00020547,2]
[375724090,1753723854432,-151.0,0.00020547,2]
[375724091,1753723854441,-460.0,0.00020547,2]
[375724092,1753723854450,-460.0,0.00020547,2]
[375724093,1753723854459,-460.0,0.00020547,2]
[375724094,1753723854468,-152.847414,0.00020547,2]
[375724095,1753723854476,-460.0,0.00020547,2]
[375724096,1753723854486,-460.0,0.00020547,2]
[375724097,1753723854495,-151.0,0.00020547,2]
[375724098,1753723854503,-169.007813,0.00020547,2]
[375724099,1753723854513,-460.0,0.00020547,2]
[375724100,1753723854522,-169.007813,0.00020547,2]
[375724101,1753723854531,-460.0,0.00020547,2]
[375724102,1753723854541,-460.0,0.00020547,2]
[375724103,1753723854554,-304.36691828,0.00020547,2]
[375724104,1753723854563,-151.454004,0.00020547,2]
[375724105,1753723854573,-460.0,0.00020547,2]
[375724106,1753723854582,-460.0,0.00020547,2]
[375724107,1753723854591,-460.0,0.00020547,2]
[375724108,1753723854601,-341.175063,0.00020547,2]
[375724109,1753723854610,-341.175063,0.00020547,2]
[375724110,1753723854619,-460.0,0.00020547,2]
[375724111,1753723854631,-460.0,0.00020547,2]
[375724112,1753723854641,-965.77,0.00020547,2]
[375724113,1753723854650,-460.0,0.00020547,2]
[375724114,1753723854659,-667.09,0.00020547,2]
[375724115,1753723854669,-460.0,0.00020547,2]
[375724116,1753723854678,-355.00028269,0.00020547,2]
[375724117,1753723854687,-460.0,0.00020547,2]
[375724118,1753723854697,-460.0,0.00020547,2]
[375724119,1753723854707,-460.0,0.00020547,2]
[375724120,1753723854717,-460.0,0.00020547,2]
[375724121,1753723854726,-460.0,0.00020547,2]
[375724122,1753723854736,-151.0,0.00020547,2]
[375724123,1753723854745,-460.0,0.00020547,2]
[375724124,1753723854755,-1902.34,0.00020547,2]
[375724125,1753723854764,-460.0,0.00020547,2]
[375724126,1753723854773,-460.0,0.00020547,2]
[375724127,1753723854782,-2739.1,0.00020547,2]
[375724128,1753723854792,-460.0,0.00020547,2]
[375724129,1753723854801,-753.97,0.00020547,2]
[375724130,1753723854811,-460.0,0.00020547,2]
[375724131,1753723854821,-460.0,0.00020547,2]
[375724132,1753723854830,-788.49,0.00020547,2]